[Event "VI Sunway Sitges Open 2019"]
[Site "Sitges"]
[Date "2019.12.20"]
[Round "9.18"]
[White "Praggnanandhaa R"]
[Black "Garriga Cazorla, Pere"]
[Result "1/2-1/2"]
[ECO "B38"]
[WhiteElo "2586"]
[BlackElo "2484"]
[Annotator "ChessBase"]
[PlyCount "89"]
[EventDate "2019.12.13"]
[EventType "swiss"]
[EventCountry "ESP"]
[SourceTitle "playchess.com"]
[Source "ChessBase"]
[SourceQuality "1"]
[TimeControl "40/5400+30:1800+30"]

1. e4 {[%emt 0:00:00]} c5 {[%emt 0:00:00]} 2. Nf3 {[%emt 0:00:00]} Nc6 {[%emt 0:00:00]} 3. d4 {[%emt 0:00:23]} cxd4 {[%emt 0:00:00]} 4. Nxd4 {[%emt 0:00:04]} g6 {[%emt 0:00:00]} 5. c4 {[%emt 0:00:55]} Bg7 {[%emt 0:00:47]} 6. Be3 {[%emt 0:00:16]} Nf6 {[%emt 0:00:53]} 7. Nc3 {[%emt 0:00:06]} O-O {[%emt 0:00:08]} 8. Be2 {[%emt 0:00:25]} d6 {[%emt 0:00:05]} 9. O-O {[%emt 0:00:12]} Bd7 {[%emt 0:00:32]} 10. Qd2 {[%emt 0:00:39]} Nxd4 {[%emt 0:00:13]} 11. Bxd4 {[%emt 0:00:06]} Bc6 {[%emt 0:00:04]} 12. f3 {[%emt 0:00:50]} a5 {[%emt 0:00:05]} 13. b3 {[%emt 0:00:51]} Nd7 {[%emt 0:00:08]} 14. Be3 {[%emt 0:01:13]} Nc5 {[%emt 0:00:05]} 15. Rab1 {[%emt 0:00:37]} e6 {[%emt 0:00:13]} 16. Rfd1 {[%emt 0:17:33]} Be5 {[%emt 0:00:42]} 17. Qe1 {[%emt 0:00:27]} Qe7 {[%emt 0:06:07]} 18. Bf1 {[%emt 0:05:56]} f5 {[%emt 0:06:58]} 19. exf5 {[%emt 0:01:50]} Rxf5 {[%emt 0:00:35]} 20. Ne2 {[%emt 0:10:31]} Raf8 {[%emt 0:21:41]} 21. Nd4 {[%emt 0:10:29]} Bxd4 {[%emt 0:03:49]} 22. Rxd4 {[%emt 0:10:41]} e5 {[%emt 0:04:48]} 23. Rg4 {[%emt 0:01:14]} R8f7 {[%emt 0:14:33]} 24. Qh4 {[%emt 0:09:28]} e4 {[%emt 0:09:57]} 25. Qxe7 {[%emt 0:05:27]} Rxe7 {[%emt 0:00:14]} 26. f4 {[%emt 0:00:23]} Nd3 {[%emt 0:03:37]} 27. Rd1 {[%emt 0:06:05]} d5 {[%emt 0:07:34]} 28. Bxd3 {[%emt 0:02:39]} exd3 {[%emt 0:00:14]} 29. Rxd3 {[%emt 0:00:06]} dxc4 {[%emt 0:01:44]} 30. bxc4 {[%emt 0:00:19]} b5 {[%emt 0:00:05]} 31. cxb5 {[%emt 0:01:25]} Rxb5 {[%emt 0:00:28]} 32. Rg5 {[%emt 0:03:05]} Rxg5 {[%emt 0:03:49]} 33. fxg5 {[%emt 0:00:02]} Rb7 {[%emt 0:00:09]} 34. Rd2 {[%emt 0:02:41]} Kf7 {[%emt 0:01:23]} 35. Kf2 {[%emt 0:00:28]} Ke6 {[%emt 0:00:50]} 36. Bf4 {[%emt 0:01:14]} Bd5 {[%emt 0:01:14]} 37. Re2+ {[%emt 0:02:03]} Kd7 {[%emt 0:00:19]} 38. Rc2 {[%emt 0:02:31]} Ke6 {[%emt 0:00:57]} 39. Bd2 {[%emt 0:00:42]} a4 {[%emt 0:05:15]} 40. a3 {[%emt 0:00:00]} Rf7+ {[%emt 0:00:00]} 41. Kg3 {[%emt 0:02:30]} Bb3 {[%emt 0:10:56]} 42. Rc5 {[%emt 0:01:31]} Rd7 {[%emt 0:01:00]} 43. Bb4 {[%emt 0:03:32]} Rd5 {[%emt 0:00:48]} 44. Kf4 {[%emt 0:00:28]} Rxc5 {[%emt 0:00:07]} 45. Bxc5 {[%emt 0:00:03]} 1/2-1/2